bitfinex/quotes_SOLUSD_20250226
["timestamp","ask_amount","ask_price","bid_price","bid_amount"]
[1740584148205,3.29203766,140.44,140.36,7.00318471]
[1740584148383,3.29203766,140.44,140.36,6.5767]
[1740584148550,1.0,140.45,140.36,6.5767]
[1740584148886,1.0,140.45,140.32,225.6767]
[1740584149055,1.0,140.44,140.32,225.6767]
[1740584149764,1.0,140.43,140.32,89.4767]
[1740584149979,1.0,140.41,140.32,89.4767]
[1740584150171,1.0,140.38,140.29,91.16]
[1740584150370,2.0,140.38,140.28,6.4779]
[1740584150768,1.0,140.37,140.28,0.063]
[1740584151078,1.0,140.35,140.28,0.063]
[1740584151650,10.26,140.36,140.28,0.063]
[1740584151852,1.0,140.35,140.28,0.063]
[1740584152056,10.26,140.36,140.28,0.063]
[1740584152381,9.26,140.36,140.28,0.063]
[1740584152551,1.0,140.35,140.28,0.063]
[1740584152984,1.0,140.34,140.23,8.26]
[1740584153205,9.26,140.36,140.21,219.1]
[1740584153206,1.0,140.32,140.21,219.1]
[1740584153387,3.5055,140.3,140.19,136.263]
[1740584153588,11.7655,140.3,140.19,136.263]
[1740584154487,9.7655,140.3,140.19,136.263]
[1740584154786,9.7655,140.3,140.2,1.63930311]
[1740584155026,1.5055,140.3,140.21,0.28432314]
[1740584155186,73.56591496,140.32,140.21,0.28432314]
[1740584155187,73.56591496,140.32,140.22,1.49678023]
[1740584155492,9.26,140.34,140.22,0.42648471]
[1740584155786,1.5798,140.35,140.24,0.42648471]
[1740584155955,9.8398,140.35,140.24,219.52648471]
[1740584156161,1.5798,140.35,140.26,0.42648471]
[1740584157074,1.5798,140.35,140.25,1.49656971]
[1740584157264,1.5798,140.35,140.25,0.42648471]
[1740584157568,2.5798,140.35,140.25,1.4965479]
[1740584157774,2.5798,140.35,140.24,219.1]
[1740584158063,3.5798,140.35,140.24,219.1]
[1740584158484,3.5798,140.35,140.23,136.2]
[1740584158485,1.0,140.34,140.23,136.2]
[1740584158661,2.0,140.33,140.23,136.2]
[1740584158984,1.0,140.33,140.23,136.2]
[1740584159183,1.0,140.34,140.23,137.69687529]
[1740584159358,1.0,140.34,140.23,136.2]
[1740584159574,2.0,140.34,140.23,136.2]
[1740584159898,1.0,140.33,140.22,227.36]
[1740584160208,1.0,140.32,140.22,227.36]
[1740584160406,2.0,140.31,140.22,8.26]
[1740584160610,8.1606,140.29,140.19,219.163]
[1740584160810,6.1606,140.29,140.19,82.963]
[1740584161015,6.1606,140.29,140.19,84.46012484]
[1740584161183,7.1606,140.29,140.19,84.46012484]
[1740584161404,7.1606,140.29,140.19,82.963]
[1740584161405,8.1606,140.29,140.19,82.963]
[1740584161689,1.5928,140.28,140.19,82.963]
[1740584163326,2.86325531,140.27,140.2,1.63950457]
[1740584163490,4.65278988,140.27,140.21,0.42648471]
[1740584163820,4.65278988,140.27,140.23,0.42648471]
[1740584163984,4.65278988,140.27,140.25,0.42648471]
[1740584164306,4.65278988,140.27,140.26,2.06512536]
[1740584164489,4.65278988,140.27,140.26,239.81477422]
[1740584164687,4.65278988,140.27,140.26,219.52648471]
[1740584165002,8.5186,140.37,140.26,219.52648471]
[1740584165190,7.5186,140.37,140.26,219.52648471]
[1740584165397,8.5186,140.37,140.26,219.52648471]
[1740584165797,6.5186,140.37,140.27,19.21829514]
[1740584166114,1.78849403,140.36,140.29,19.07613357]
[1740584166281,1.78849403,140.36,140.31,0.14216157]
[1740584166486,1.78849403,140.36,140.3,1.49594001]
[1740584167315,1.78849403,140.36,140.29,219.1]
[1740584167621,1.78849403,140.35,140.3,0.28432314]
[1740584167912,1.78849403,140.35,140.3,219.38432314]
[1740584168112,1.78849403,140.35,140.31,1.78037682]
[1740584168736,1.78849403,140.34,140.31,1.78037682]
[1740584169913,1.78849403,140.34,140.31,1.49605368]
[1740584170083,1.78849403,140.34,140.3,219.1]
[1740584170289,1.78849403,140.33,140.3,82.9]
[1740584171212,1.0,140.38,140.3,82.9]
[1740584171397,1.0,140.38,140.28,144.46]
[1740584171398,1.0,140.37,140.28,144.46]
[1740584171708,1.0,140.37,140.28,136.2]
[1740584172083,10.26,140.38,140.28,136.2]
[1740584172291,1.5167,140.39,140.32,0.28432314]
[1740584172484,1.0,140.43,140.34,0.28432314]
[1740584172706,2.6034,140.44,140.35,1.49551308]
[1740584172895,1.0,140.43,140.35,1.49551308]
[1740584173099,1.0,140.43,140.34,219.1]
[1740584173413,1.0,140.43,140.33,0.14216157]
[1740584173414,74.56591496,140.43,140.35,82.9]
[1740584173588,73.56591496,140.43,140.35,82.9]
[1740584173790,1.6034,140.44,140.36,1.92195994]
[1740584173989,1.6034,140.44,140.37,0.14216157]
[1740584174221,1.6034,140.44,140.38,1.92160735]
[1740584174989,0.03,140.44,140.38,221.02160735]
[1740584175196,0.03,140.44,140.39,18.79181043]
[1740584175473,0.03,140.44,140.41,0.42648471]
[1740584175631,0.03,140.44,140.41,219.52648471]
[1740584176303,0.03,140.44,140.42,1.92136999]
[1740584176607,0.03,140.44,140.43,19.21829514]
[1740584177009,0.03,140.44,140.43,2.06307073]
[1740584177205,0.03,140.44,140.43,1.92090916]
[1740584177404,0.03,140.44,140.38,219.1]
[1740584177623,0.03,140.44,140.38,82.9]
[1740584178253,2.03,140.44,140.33,219.1]
[1740584178611,1.0,140.42,140.33,219.1]
[1740584178814,1.0,140.42,140.33,82.9]
[1740584179134,2.0,140.42,140.33,82.9]
[1740584179802,2.0,140.42,140.31,144.44]
[1740584179994,1.0,140.4,140.31,144.44]
[1740584180220,2.0,140.41,140.31,8.24]
[1740584180420,1.0,140.43,140.32,18.64964886]
[1740584180746,0.03,140.44,140.35,0.14216157]
[1740584181031,0.03,140.44,140.37,0.14216157]
[1740584181228,0.03,140.44,140.37,28.52689414]
[1740584181522,0.03,140.44,140.37,247.62689414]
[1740584181728,0.03,140.44,140.37,227.48216157]
[1740584181930,0.03,140.44,140.38,0.42648471]
[1740584182133,1.03,140.44,140.37,82.9]
[1740584182637,0.03,140.44,140.37,82.9]
[1740584182841,1.03,140.44,140.37,82.9]
[1740584183219,2.03,140.44,140.37,82.9]
[1740584183429,0.03,140.44,140.37,82.9]
[1740584183623,1.03,140.44,140.37,82.9]
[1740584183821,2.03,140.44,140.37,82.9]
[1740584184133,1.03,140.44,140.37,82.9]
[1740584184343,1.0,140.41,140.32,227.34]
[1740584184643,2.0,140.4,140.32,8.24]
[1740584184818,2.0,140.38,140.28,8.24]
[1740584185014,1.0,140.4,140.29,0.56864628]
[1740584185217,2.0,140.41,140.31,0.42648471]
[1740584185715,1.0,140.41,140.31,0.42648471]
[1740584186112,81.80591496,140.43,140.34,0.14216157]
[1740584186315,8.24,140.43,140.35,0.42648471]
[1740584186521,0.03,140.44,140.36,1.49542262]
[1740584186720,1.0,140.43,140.34,227.34]
[1740584187027,0.03,140.44,140.35,0.42648471]
[1740584187238,0.03,140.44,140.36,1.49538653]
[1740584187589,0.03,140.44,140.36,220.59538653]
[1740584187757,0.03,140.44,140.37,0.42648471]
[1740584187916,0.03,140.44,140.37,221.0216666]
[1740584188120,0.03,140.44,140.38,0.14216157]
[1740584188334,0.03,140.44,140.4,0.42648471]
[1740584188535,0.03,140.44,140.4,219.52648471]
[1740584188918,0.03,140.44,140.41,1.49484404]
[1740584189426,0.03,140.44,140.41,1.49487829]
[1740584189637,6.1662,140.5,140.41,1.49487829]
[1740584189951,6.1662,140.5,140.41,219.1]
[1740584190238,1.0,140.49,140.41,219.1]
[1740584190621,2.0,140.49,140.41,219.1]
[1740584191230,2.0,140.47,140.39,91.14]
[1740584191432,2.0,140.47,140.39,82.9]
[1740584191834,75.56591496,140.46,140.36,219.1]
[1740584192040,1.0,140.43,140.35,8.24]
[1740584192215,1.6195,140.42,140.35,8.24]
[1740584192726,1.5978,140.48,140.37,0.56864628]
[1740584192923,1.5978,140.48,140.39,0.42648471]
[1740584193343,1.5978,140.48,140.38,1.49505987]
[1740584193344,2.5978,140.48,140.38,0.28432314]
[1740584194117,1.5978,140.48,140.39,0.14216157]
[1740584194318,1.5978,140.48,140.41,0.14216157]
[1740584194545,1.5978,140.48,140.43,0.14216157]
[1740584194738,1.5978,140.48,140.41,219.1]
[1740584194934,1.5978,140.48,140.42,1.92142094]
[1740584195245,1.5978,140.48,140.42,1.49493623]
[1740584195449,1.5978,140.48,140.41,91.14]
[1740584196148,1.6278,140.48,140.41,91.14]
[1740584196835,1.6278,140.48,140.41,82.9]
[1740584197669,75.19371496,140.48,140.41,82.9]
[1740584199152,76.19371496,140.48,140.41,82.9]
[1740584199354,75.19371496,140.48,140.41,82.9]
[1740584200345,75.19371496,140.48,140.39,144.44]
[1740584200346,1.0,140.46,140.39,85.7095]
[1740584200549,75.56591496,140.45,140.36,213.6695]
[1740584200778,75.56591496,140.45,140.36,77.4695]
[1740584201046,8.24,140.47,140.36,215.16499495]
[1740584201269,2.0,140.47,140.37,0.42648471]
[1740584201754,75.19371496,140.48,140.38,18.79181043]
[1740584201755,1.6278,140.48,140.38,18.79181043]
[1740584201938,1.6278,140.48,140.4,0.42648471]
[1740584202139,1.6278,140.48,140.4,214.09598471]
[1740584202355,1.6278,140.48,140.4,221.9095]
[1740584202650,2.0,140.47,140.4,76.3834]
[1740584202862,1.0,140.47,140.4,76.3834]
[1740584203020,1.0,140.46,140.4,76.1118]
[1740584203221,2.0,140.47,140.4,76.1118]
[1740584203423,75.56591496,140.47,140.37,212.3118]
[1740584204049,2.0,140.45,140.37,76.1118]
[1740584204861,1.0,140.42,140.34,212.3118]
[1740584205045,1.0,140.41,140.34,76.1118]
[1740584205238,1.5992,140.4,140.34,76.1118]
[1740584205444,3.5992,140.4,140.33,0.063]
[1740584205764,1.0,140.39,140.33,0.063]
[1740584205950,1.0,140.38,140.33,0.063]
[1740584206454,1.0,140.37,140.33,0.063]
[1740584206639,1.0,140.38,140.33,0.063]
[1740584206850,1.0,140.39,140.33,0.063]
[1740584207177,1.0,140.37,140.33,0.063]
[1740584208368,7.0662,140.36,140.33,0.063]
[1740584208570,6.0662,140.36,140.33,0.063]
[1740584213783,7.0662,140.36,140.33,0.063]
[1740584213996,7.0662,140.36,140.28,220.5518]
[1740584214281,7.0662,140.36,140.28,84.3518]
[1740584214760,1.0,140.35,140.28,76.1118]
[1740584214963,6.0662,140.36,140.28,76.1118]
[1740584215446,6.0662,140.36,140.29,0.42648471]
[1740584218094,6.0662,140.36,140.31,0.42648471]
[1740584218264,6.0662,140.36,140.32,21.44]
[1740584218457,6.0662,140.36,140.31,136.62648471]
[1740584218780,6.0662,140.36,140.31,136.2]
[1740584219354,7.6383,140.4,140.32,0.42648471]
[1740584219560,7.6383,140.4,140.32,138.12223616]
[1740584219767,7.6383,140.4,140.32,144.84648471]
[1740584220087,7.6383,140.4,140.34,0.42648471]
[1740584220398,1.5992,140.4,140.36,0.42648471]
[1740584220586,1.5992,140.4,140.36,212.73828471]
[1740584220796,6.0019,140.44,140.37,1.63762361]
[1740584220970,6.0019,140.44,140.39,0.42648471]
[1740584221173,0.03,140.45,140.4,18.79181043]
[1740584221376,0.03,140.45,140.42,0.42648471]
[1740584221893,0.03,140.45,140.41,0.56864628]
[1740584222092,0.03,140.45,140.41,2.06344288]
[1740584222392,0.03,140.45,140.44,19.21829514]
[1740584222590,0.03,140.45,140.44,241.24451791]
[1740584222793,0.03,140.45,140.44,261.19009514]
[1740584223287,0.03,140.45,140.44,239.75009514]
[1740584224316,0.03,140.45,140.44,221.10044628]
[1740584224377,0.03,140.45,140.44,239.75009514]
[1740584227208,0.03,140.48,140.47,20.56864628]
[1740584227414,0.03,140.48,140.47,253.02374204]
[1740584227602,0.03,140.48,140.47,251.53009514]
[1740584229215,0.03,140.5,140.48,19.21829514]
[1740584229393,0.03,140.5,140.49,20.71179091]
[1740584230012,0.03,140.5,140.49,233.02359091]
[1740584230215,0.03,140.5,140.49,212.45396157]
[1740584230414,0.03,140.5,140.49,76.1118]
[1740584230616,0.03,140.5,140.48,8.22]
[1740584231006,0.03,140.5,140.49,1.49407402]
[1740584231311,0.03,140.5,140.49,2.0627203]
[1740584231612,0.03,140.5,140.49,1.92055873]
[1740584231956,0.03,140.5,140.48,84.3318]
[1740584232109,0.03,140.5,140.46,136.2]
[1740584232413,1.6329,140.49,140.44,204.3118]
[1740584232615,1.6329,140.49,140.44,84.3318]
[1740584233413,1.6329,140.49,140.44,76.1118]
[1740584233913,1.0,140.48,140.41,76.1118]
[1740584234121,1.0,140.47,140.41,76.1118]
[1740584235193,1.0,140.46,140.41,76.1118]
[1740584235518,7.0589,140.44,140.34,332.2518]
[1740584235698,1.0,140.43,140.34,332.2518]
[1740584235898,1.0,140.43,140.34,340.4718]
[1740584236144,1.0,140.43,140.35,0.56864628]
[1740584236406,6.0589,140.44,140.37,0.56864628]
[1740584236612,6.0589,140.44,140.39,0.28432314]
[1740584237141,6.0589,140.44,140.37,212.3118]
[1740584237142,1.0,140.43,140.37,212.3118]
[1740584237413,1.0,140.41,140.34,340.4718]
[1740584237621,1.6315,140.4,140.34,340.4718]
[1740584238007,1.6315,140.4,140.36,0.28432314]
[1740584238218,1.6315,140.4,140.34,340.4718]
[1740584238414,1.6315,140.4,140.34,332.2518]
[1740584238605,1.0,140.39,140.33,8.22]
[1740584239197,1.6315,140.4,140.34,2.06449967]
[1740584239507,1.6315,140.4,140.34,214.37629967]
[1740584239701,1.6315,140.4,140.36,0.56864628]
[1740584239920,7.6978,140.44,140.38,0.28432314]
[1740584240222,7.6978,140.44,140.38,212.59612314]
[1740584240417,1.6389,140.44,140.42,0.28432314]
[1740584240625,6.0026,140.48,140.42,212.59612314]
[1740584240806,6.0026,140.48,140.43,1.494606]
[1740584241197,6.0026,140.48,140.42,212.59612314]
[1740584241519,7.0026,140.48,140.39,220.5318]
[1740584241691,1.0,140.46,140.39,220.5318]
[1740584241889,1.0,140.45,140.39,84.3318]
[1740584242300,1.0,140.44,140.39,84.3318]
[1740584242516,6.0026,140.48,140.35,119.96]
[1740584242517,1.0,140.43,140.35,340.4918]
[1740584243020,1.0,140.44,140.36,0.28432314]
[1740584243327,1.0,140.43,140.36,0.28432314]
[1740584245033,2.5116,140.42,140.36,76.1118]
[1740584245529,7.6106,140.4,140.36,76.1118]
[1740584245723,6.6106,140.4,140.36,76.1118]
[1740584247225,1.5116,140.42,140.37,1.77984535]
[1740584247626,6.369,140.44,140.39,0.28432314]
[1740584247934,0.03,140.45,140.44,0.28432314]
[1740584248223,0.03,140.45,140.44,241.24446507]
[1740584248533,0.03,140.45,140.44,261.19009514]
[1740584248895,0.03,140.45,140.44,268.31049514]
[1740584249294,0.03,140.45,140.44,261.19009514]
[1740584249727,0.03,140.45,140.44,268.31049514]
[1740584250235,0.03,140.45,140.44,261.19009514]
[1740584250588,0.03,140.45,140.44,239.75009514]
[1740584251333,0.03,140.45,140.44,221.10044628]
[1740584251527,0.03,140.45,140.44,220.5318]
[1740584252031,0.03,140.45,140.44,76.1118]
[1740584252407,0.03,140.45,140.44,233.02477801]
[1740584252620,0.03,140.5,140.48,20.56864628]
[1740584252827,0.03,140.5,140.49,28.91196635]
[1740584253375,0.03,140.5,140.49,10.26231749]
[1740584253701,0.03,140.5,140.49,222.57411749]
[1740584253906,0.03,140.5,140.49,221.08044628]
[1740584254118,0.03,140.5,140.49,239.73009514]
[1740584254718,0.03,140.5,140.49,221.08044628]
[1740584255140,0.03,140.5,140.49,239.73009514]
[1740584255652,0.03,140.5,140.49,84.3118]
[1740584256021,0.03,140.5,140.49,84.45396157]
[1740584256214,0.03,140.5,140.49,84.73828471]
[1740584256513,0.03,140.5,140.49,84.59612314]
[1740584256740,0.03,140.5,140.49,84.88044628]
[1740584257147,0.03,140.5,140.49,84.73828471]
[1740584257533,0.03,140.5,140.49,84.88044628]
[1740584258315,0.03,140.5,140.49,103.53009514]
[1740584258517,0.03,140.5,140.49,239.73009514]
[1740584258911,0.03,140.5,140.49,261.17009514]
[1740584259227,0.03,140.5,140.49,268.28799514]
[1740584260628,0.03,140.55,140.54,40.65829514]
[1740584260949,0.03,140.55,140.54,254.46327102]
[1740584261150,0.03,140.55,140.54,252.97009514]
[1740584262017,0.03,140.55,140.54,212.59612314]
[1740584262224,0.03,140.55,140.54,212.3118]
[1740584262750,0.03,140.55,140.54,76.1118]
[1740584264324,0.03,140.55,140.54,76.68044628]
[1740584264524,0.03,140.55,140.54,77.88960291]
[1740584265222,0.03,140.55,140.54,214.08960291]
[1740584265424,0.03,140.55,140.54,212.59612314]
[1740584265651,0.03,140.55,140.54,212.88044628]
[1740584265920,0.03,140.55,140.54,212.59612314]
[1740584266642,0.03,140.55,140.54,212.3118]
[1740584269946,0.03,140.55,140.5,212.3118]
[1740584270136,1.03,140.55,140.5,212.3118]
[1740584270547,1.0,140.53,140.5,76.1118]
[1740584271359,1.0,140.52,140.49,8.2]
[1740584271538,1.0,140.49,140.44,220.5118]
[1740584271741,1.0,140.48,140.44,220.5118]
[1740584272664,1.0,140.48,140.44,84.3118]
[1740584273561,1.0,140.49,140.44,84.3118]
[1740584273861,1.0,140.5,140.44,84.3118]
[1740584274437,1.0,140.5,140.44,85.80630688]
[1740584274961,2.6664,140.51,140.44,85.80630688]
[1740584275256,1.6664,140.51,140.45,0.28432314]
[1740584275650,2.6664,140.51,140.45,0.28432314]
[1740584275970,1.6664,140.51,140.45,0.28432314]
[1740584276141,2.6664,140.51,140.45,0.28432314]
[1740584276667,1.6664,140.51,140.45,1.77869857]
[1740584276847,2.6664,140.51,140.45,1.77869857]
[1740584277456,1.0,140.5,140.45,1.49437543]
[1740584278232,1.0,140.5,140.44,220.5748]
[1740584278470,2.6664,140.51,140.44,84.3748]
[1740584278471,1.0,140.49,140.44,84.3748]
[1740584278651,1.0,140.47,140.44,84.3748]
[1740584278955,1.6664,140.51,140.44,0.063]
[1740584278956,1.0,140.45,140.44,0.063]
[1740584280560,2.5131,140.42,140.41,0.063]
[1740584280958,1.0,140.46,140.42,0.14216157]
[1740584281463,1.0,140.45,140.41,212.3748]
[1740584281968,1.0,140.45,140.41,0.063]
[1740584281969,1.0,140.42,140.41,0.063]
[1740584282552,1.0,140.43,140.41,0.063]
[1740584282742,1.0,140.44,140.41,0.063]
[1740584283049,1.5007,140.47,140.43,0.14216157]
[1740584283252,1.5007,140.47,140.43,212.45396157]
[1740584283436,2.5007,140.47,140.43,212.45396157]
[1740584283774,1.5007,140.47,140.43,212.45396157]
[1740584283961,3.5174,140.51,140.46,0.14216157]
[1740584284138,1.0,140.5,140.46,212.45396157]
[1740584284339,1.0,140.49,140.46,212.3118]
[1740584284560,1.0,140.5,140.46,212.3118]
[1740584285362,1.0,140.49,140.46,212.3118]
[1740584285574,1.0,140.5,140.46,212.3118]
[1740584285761,1.0,140.49,140.46,212.3118]
[1740584285947,1.0,140.5,140.46,212.3118]
[1740584286272,1.0,140.49,140.46,212.3118]
[1740584286462,1.0,140.5,140.46,212.3118]
[1740584286770,2.5174,140.51,140.47,1.92085414]
[1740584286970,1.5174,140.51,140.48,0.14216157]
[1740584287212,0.03,140.55,140.52,0.42648471]
[1740584287474,0.03,140.55,140.52,221.02014218]
[1740584287674,0.03,140.55,140.53,0.14216157]
[1740584287857,0.03,140.55,140.54,1.63561482]
[1740584288057,0.03,140.55,140.54,2.06209953]
[1740584288255,0.03,140.55,140.54,247.99174839]
[1740584288456,0.03,140.55,140.54,219.1]
[1740584288647,0.03,140.55,140.54,219.38432314]
[1740584288856,0.03,140.55,140.54,219.66864628]
[1740584289073,0.03,140.55,140.54,245.43369514]
[1740584289577,0.03,140.59,140.57,20.0]
[1740584289768,15.87492228,140.68,140.62,0.56864628]
[1740584289968,16.87492228,140.68,140.62,220.5925586]
[1740584290184,16.87492228,140.68,140.62,219.38432314]
[1740584290357,16.87492228,140.68,140.63,0.42648471]
[1740584290700,0.03,140.7,140.65,19.07613357]
[1740584290909,0.03,140.7,140.67,0.42648471]
[1740584291180,0.03,140.7,140.68,1.49202173]
[1740584291358,1.0,140.68,140.65,219.1]
[1740584291546,1.0,140.68,140.65,82.9]
[1740584291869,1.0,140.65,140.59,219.1]
[1740584292174,2.0,140.65,140.59,227.28]
[1740584292380,1.0,140.65,140.6,1.49285509]
[1740584293060,1.0,140.62,140.59,227.28]
[1740584293265,1.0,140.61,140.55,347.2]
[1740584293570,1.0,140.62,140.55,347.2]
[1740584293782,1.0,140.62,140.56,0.14216157]
[1740584293981,1.0,140.62,140.56,0.42648471]
[1740584294270,1.0,140.62,140.56,1.91961906]
[1740584294690,1.0,140.6,140.56,219.1]
[1740584294987,2.0,140.62,140.56,219.1]
[1740584295193,1.0,140.62,140.56,219.1]
[1740584295488,1.0,140.63,140.57,0.56864628]
[1740584295680,1.0,140.63,140.57,219.1]
[1740584295681,1.0,140.62,140.57,219.1]
[1740584295881,1.0,140.6,140.57,219.1]
[1740584296288,1.0,140.6,140.57,82.9]
[1740584296662,1.0,140.58,140.57,82.9]
[1740584297001,1.0,140.55,140.5,227.28]
[1740584297667,2.0,140.53,140.5,91.08]
[1740584297866,1.0,140.51,140.5,8.18]
[1740584298073,1.0,140.5,140.47,338.94]
[1740584298992,1.0,140.49,140.47,82.9]
[1740584299204,1.0,140.5,140.47,82.9]
[1740584299484,2.0,140.5,140.47,82.9]
[1740584300063,8.18,140.57,140.47,84.39436974]
[1740584300064,2.0,140.53,140.47,84.39436974]
[1740584300281,1.0,140.51,140.47,219.1]
[1740584300485,2.0,140.51,140.47,219.1]
[1740584300682,1.0,140.49,140.47,219.1]
[1740584300865,1.0,140.49,140.43,8.243]
[1740584300866,1.0,140.48,140.44,8.18]
[1740584301071,1.0,140.47,140.44,227.28]
[1740584301276,1.0,140.46,140.44,227.28]
[1740584301476,1.0,140.44,140.43,0.063]
[1740584301678,1.0,140.46,140.43,0.063]
[1740584301857,2.0,140.46,140.43,0.063]
[1740584302060,1.0,140.45,140.43,0.063]
[1740584302484,1.0,140.46,140.43,0.063]
[1740584302677,2.0,140.46,140.43,0.063]
[1740584302863,1.0,140.5,140.44,0.28432314]
[1740584303085,1.5581,140.51,140.46,0.42648471]
[1740584303291,2.5581,140.51,140.47,9.67407071]
[1740584303605,2.5581,140.51,140.47,228.77407071]
[1740584303912,2.5581,140.51,140.47,227.28]
[1740584304100,1.0,140.48,140.43,227.343]
[1740584304398,1.0,140.47,140.43,227.343]
[1740584305072,2.0,140.49,140.44,0.14216157]
[1740584305285,2.0,140.49,140.45,1.49462281]
[1740584305483,1.0,140.48,140.45,1.49462281]
[1740584305798,1.0,140.47,140.43,227.343]
[1740584306296,1.0,140.49,140.44,0.28432314]
[1740584306491,2.0,140.5,140.46,0.28432314]
[1740584306701,2.0,140.5,140.46,219.38432314]
[1740584306933,1.0,140.47,140.46,219.1]
[1740584307075,1.0,140.48,140.46,82.9]
[1740584307275,1.0,140.49,140.46,82.9]
[1740584307481,1.0,140.48,140.46,82.9]
[1740584307683,2.0,140.48,140.46,82.9]
[1740584307968,1.0,140.47,140.46,82.9]
[1740584308414,1.0,140.49,140.46,82.9]
[1740584308578,1.0,140.5,140.46,82.9]
[1740584308781,1.5581,140.51,140.47,0.42648471]
[1740584309112,2.0,140.52,140.47,20.57044943]
[1740584309284,1.0,140.52,140.47,20.57044943]
[1740584309601,7.2153,140.53,140.47,239.67044943]
[1740584309818,8.2153,140.53,140.47,238.17613357]
[1740584310012,1.0,140.52,140.47,238.17613357]
[1740584310317,1.0,140.51,140.49,0.28432314]
[1740584310613,1.0,140.52,140.49,219.38432314]
[1740584310917,1.0,140.53,140.5,0.14216157]
[1740584311105,2.0,140.54,140.5,220.73603995]
[1740584311406,2.0,140.54,140.5,219.24216157]
[1740584311613,1.6175,140.56,140.5,219.24216157]
[1740584311614,3.6175,140.56,140.52,0.14216157]
[1740584311802,1.0,140.54,140.52,219.24216157]
[1740584312021,2.6175,140.56,140.52,219.24216157]
[1740584312188,1.6175,140.56,140.52,219.24216157]
[1740584312508,2.6175,140.56,140.52,219.24216157]
[1740584312677,1.0,140.55,140.52,219.24216157]
[1740584312883,2.6175,140.56,140.52,219.24216157]
[1740584313109,1.0,140.55,140.52,219.24216157]
[1740584313434,2.6175,140.56,140.52,219.1]
[1740584313435,1.0,140.53,140.52,219.1]
[1740584313714,2.0,140.54,140.52,82.9]
[1740584313928,1.0,140.53,140.52,82.9]
[1740584314099,1.0,140.53,140.5,84.3939279]
[1740584314299,1.6175,140.56,140.5,82.9]
[1740584314300,2.0,140.51,140.5,82.9]
[1740584314612,1.0,140.49,140.46,227.26]
[1740584314818,2.0,140.49,140.46,227.26]
[1740584315396,1.0,140.47,140.46,8.16]
[1740584315603,1.0,140.45,140.43,219.163]
[1740584316126,1.0,140.44,140.43,82.963]
[1740584316328,2.0,140.45,140.43,82.963]
[1740584316513,1.0,140.44,140.43,82.963]
[1740584316687,2.0,140.45,140.43,82.963]
[1740584316895,1.0,140.45,140.43,82.963]
[1740584317098,1.0,140.47,140.44,0.42648471]
[1740584317303,1.0,140.47,140.43,82.963]
[1740584317304,1.0,140.46,140.43,82.963]
[1740584317494,1.0,140.44,140.43,82.963]
[1740584317717,2.0,140.44,140.43,82.963]
[1740584318017,2.0,140.47,140.43,82.963]
[1740584318195,6.1871,140.52,140.43,82.963]
[1740584318196,2.0,140.46,140.43,82.963]
[1740584318514,1.0,140.45,140.43,82.963]
[1740584318723,2.0,140.45,140.43,82.963]
[1740584319024,2.0,140.44,140.43,82.963]